bitfinex/quotes_BTCUSD_20230904
["timestamp","ask_amount","ask_price","bid_price","bid_amount"]
[1693789463357,0.03400133,25908.0,25907.0,3.05495409]
[1693789463695,0.03400133,25908.0,25907.0,3.05759409]
[1693789463899,0.03400133,25908.0,25907.0,3.05771409]
[1693789464104,0.03400133,25908.0,25907.0,3.05789409]
[1693789464319,0.03400133,25908.0,25907.0,3.05807409]
[1693789464531,0.03400133,25908.0,25907.0,3.28845473]
[1693789464705,0.03400133,25908.0,25907.0,3.28875473]
[1693789464911,0.03400133,25908.0,25907.0,3.28929473]
[1693789465228,0.03400133,25908.0,25907.0,3.22203518]
[1693789465432,0.03400133,25908.0,25907.0,3.42747518]
[1693789465634,0.03400133,25908.0,25907.0,3.42879518]
[1693789465835,0.03400133,25908.0,25907.0,3.42855518]
[1693789466053,0.03400133,25908.0,25907.0,3.42363518]
[1693789466196,0.03400133,25908.0,25907.0,3.42015518]
[1693789466397,0.03400133,25908.0,25907.0,3.41439518]
[1693789466648,0.03400133,25908.0,25907.0,3.41019518]
[1693789466852,0.03400133,25908.0,25907.0,3.41127518]
[1693789467050,0.03400133,25908.0,25907.0,3.41403518]
[1693789467261,0.03400133,25908.0,25907.0,3.41391518]
[1693789467426,0.03400133,25908.0,25907.0,3.41379518]
[1693789467628,0.03400133,25908.0,25907.0,3.41475518]
[1693789467828,0.03400133,25908.0,25907.0,3.41487518]
[1693789468034,0.03400133,25908.0,25907.0,3.41523518]
[1693789468243,0.03400133,25908.0,25907.0,3.41535518]
[1693789468475,0.03400133,25908.0,25907.0,3.40419518]
[1693789468681,0.03400133,25908.0,25907.0,3.31973518]
[1693789468970,0.03400133,25908.0,25907.0,3.32201518]
[1693789469100,0.03400133,25908.0,25907.0,3.31817518]
[1693789469533,0.03400133,25908.0,25907.0,3.31805518]
[1693789469730,0.03400133,25908.0,25907.0,3.33221518]
[1693789469937,0.03400133,25908.0,25907.0,3.33485518]
[1693789470141,0.03400133,25908.0,25907.0,3.33509518]
[1693789470349,0.03400133,25908.0,25907.0,3.33125518]
[1693789470712,0.03400133,25908.0,25907.0,3.33269518]
[1693789471086,0.03400133,25908.0,25907.0,3.33293518]
[1693789471295,0.03400133,25908.0,25907.0,3.33317518]
[1693789471502,0.03400133,25908.0,25907.0,3.33209518]
[1693789471701,0.03400133,25908.0,25907.0,3.33653518]
[1693789471859,0.03400133,25908.0,25907.0,3.33713518]
[1693789472034,0.03400133,25908.0,25907.0,3.33737518]
[1693789472238,0.03400133,25908.0,25907.0,3.33845518]
[1693789472440,0.03400133,25908.0,25907.0,3.34229518]
[1693789472634,0.03400133,25908.0,25907.0,3.34253518]
[1693789472840,0.03400133,25908.0,25907.0,3.34265518]
[1693789473075,0.03400133,25908.0,25907.0,3.34085518]
[1693789473277,0.03400133,25908.0,25907.0,3.34109518]
[1693789473679,0.03400133,25908.0,25907.0,3.32729518]
[1693789473929,0.03400133,25908.0,25907.0,3.32429518]
[1693789474273,0.03400133,25908.0,25907.0,3.32549518]
[1693789474453,0.03400133,25908.0,25907.0,3.32825518]
[1693789474655,0.03400133,25908.0,25907.0,3.32669518]
[1693789475060,0.03400133,25908.0,25907.0,3.32633518]
[1693789475207,0.03400133,25908.0,25907.0,3.32849518]
[1693789475414,0.03400133,25908.0,25907.0,3.32813518]
[1693789475595,0.03400133,25908.0,25907.0,3.32657518]
[1693789475815,0.03400133,25908.0,25907.0,3.33041518]
[1693789476017,0.03400133,25908.0,25907.0,3.33089518]
[1693789476219,0.03400133,25908.0,25907.0,3.33293518]
[1693789476440,0.03400133,25908.0,25907.0,3.34589518]
[1693789476639,0.03400133,25908.0,25907.0,3.34625518]
[1693789476867,0.03400133,25908.0,25907.0,3.34973518]
[1693789477068,0.03400133,25908.0,25907.0,3.34889518]
[1693789477538,0.03400133,25908.0,25907.0,3.34877518]
[1693789477894,0.03400133,25908.0,25907.0,3.34937518]
[1693789478513,0.05673745,25910.0,25907.0,3.34925518]
[1693789478714,0.05673745,25910.0,25909.0,0.4984278]
[1693789478886,0.05673745,25910.0,25909.0,3.11428189]
[1693789479092,0.05673745,25910.0,25909.0,3.38692189]
[1693789479465,0.05673745,25910.0,25909.0,3.38680189]
[1693789479667,0.05673745,25910.0,25909.0,3.39676189]
[1693789479897,0.05673745,25910.0,25909.0,3.20680287]
[1693789480094,0.05773745,25910.0,25909.0,3.24392287]
[1693789480331,0.05773745,25910.0,25909.0,3.24332287]
[1693789480532,0.05773745,25910.0,25909.0,3.24344287]
[1693789480671,0.05773745,25910.0,25909.0,3.24332287]
[1693789480876,0.05773745,25910.0,25909.0,3.24344287]
[1693789481082,0.05773745,25910.0,25909.0,3.24536287]
[1693789481284,0.05773745,25910.0,25909.0,3.24548287]
[1693789481753,0.05773745,25910.0,25909.0,3.24536287]
[1693789481986,0.05773745,25910.0,25909.0,3.24524287]
[1693789482210,0.05773745,25910.0,25909.0,3.25088287]
[1693789482418,0.05773745,25910.0,25909.0,3.26780287]
[1693789482627,0.05773745,25910.0,25909.0,3.26480287]
[1693789482844,0.05773745,25910.0,25909.0,3.26504287]
[1693789483060,0.05773745,25910.0,25909.0,3.26624287]
[1693789483276,0.05773745,25910.0,25909.0,3.26564287]
[1693789483487,0.05773745,25910.0,25909.0,3.26528287]
[1693789483698,0.05773745,25910.0,25909.0,3.25880287]
[1693789483850,0.05773745,25910.0,25909.0,3.25916287]
[1693789484027,0.05773745,25910.0,25909.0,3.25892287]
[1693789484234,0.05673745,25910.0,25909.0,3.22156287]
[1693789484418,0.05673745,25910.0,25909.0,3.22180287]
[1693789484620,0.05673745,25910.0,25909.0,3.22132287]
[1693789484824,0.05673745,25910.0,25909.0,3.22120287]
[1693789485045,0.05673745,25910.0,25909.0,3.22096287]
[1693789485406,0.05673745,25910.0,25909.0,3.22024287]
[1693789485608,0.05673745,25910.0,25909.0,3.26132287]
[1693789485828,0.05673745,25910.0,25909.0,3.22552287]
[1693789486017,0.05673745,25910.0,25909.0,3.22924287]
[1693789486242,0.05673745,25910.0,25909.0,3.26264287]
[1693789486446,0.05673745,25910.0,25909.0,3.26192287]
[1693789486619,0.05673745,25910.0,25909.0,3.26168287]
[1693789486850,0.05673745,25910.0,25909.0,3.26144287]
[1693789487004,0.05673745,25910.0,25909.0,3.26120287]
[1693789487201,0.05673745,25910.0,25909.0,3.26000287]
[1693789487379,0.05673745,25910.0,25909.0,3.25988287]
[1693789487584,0.05673745,25910.0,25909.0,3.25952287]
[1693789487786,0.05673745,25910.0,25909.0,3.25928287]
[1693789487987,0.05673745,25910.0,25909.0,3.25916287]
[1693789488239,0.05673745,25910.0,25909.0,3.25892287]
[1693789488442,0.05673745,25910.0,25909.0,3.25868287]
[1693789488646,0.05673745,25910.0,25909.0,3.25724287]
[1693789488852,0.05673745,25910.0,25909.0,3.25772287]
[1693789489066,0.05673745,25910.0,25909.0,3.25640287]
[1693789489264,0.05673745,25910.0,25909.0,3.25616287]
[1693789489397,0.05673745,25910.0,25909.0,3.31454669]
[1693789489619,0.05673745,25910.0,25909.0,3.31442669]
[1693789489823,0.05673745,25910.0,25909.0,3.31370669]
[1693789490019,0.05673745,25910.0,25909.0,3.31358669]
[1693789490228,0.05673745,25910.0,25909.0,3.31586669]
[1693789490451,0.05673745,25910.0,25909.0,3.31538669]
[1693789490660,0.05673745,25910.0,25909.0,3.26108287]
[1693789490859,0.05673745,25910.0,25909.0,3.25688287]
[1693789491083,0.05673745,25910.0,25909.0,3.03071409]
[1693789491265,0.05673745,25910.0,25909.0,3.03119409]
[1693789491505,0.05673745,25910.0,25909.0,3.03071409]
[1693789491681,0.05673745,25910.0,25909.0,3.03167409]
[1693789491894,0.05673745,25910.0,25909.0,3.02555409]
[1693789492088,0.05673745,25910.0,25909.0,3.02567409]
[1693789492289,0.05673745,25910.0,25909.0,3.02555409]
[1693789492497,0.05673745,25910.0,25909.0,3.02939409]
[1693789492697,0.05673745,25910.0,25909.0,3.03635409]
[1693789492878,0.05673745,25910.0,25909.0,3.03707409]
[1693789493073,0.05673745,25910.0,25909.0,3.03743409]
[1693789493274,0.05673745,25910.0,25909.0,3.03719409]
[1693789493479,0.05673745,25910.0,25909.0,3.03323409]
[1693789493678,0.05673745,25910.0,25909.0,3.03215409]
[1693789493903,0.05673745,25910.0,25909.0,3.03251409]
[1693789494096,0.05673745,25910.0,25909.0,3.03767409]
[1693789494300,0.05673745,25910.0,25909.0,3.03395409]
[1693789494476,0.05673745,25910.0,25909.0,3.06467633]
[1693789494682,0.05673745,25910.0,25909.0,3.06359633]
[1693789494899,0.05673745,25910.0,25909.0,3.06575633]
[1693789495093,0.05673745,25910.0,25909.0,3.06455633]
[1693789495441,0.05673745,25910.0,25909.0,3.06599633]
[1693789495596,0.05673745,25910.0,25909.0,3.06587633]
[1693789495860,0.05673745,25910.0,25909.0,3.06563633]
[1693789496202,0.05673745,25910.0,25909.0,3.06191633]
[1693789496398,0.05673745,25910.0,25909.0,3.05951633]
[1693789496601,0.05673745,25910.0,25909.0,3.05843633]
[1693789496806,0.05673745,25910.0,25909.0,3.05783633]
[1693789496983,0.05673745,25910.0,25909.0,3.05807633]
[1693789497184,0.05673745,25910.0,25909.0,3.06479633]
[1693789497393,0.05673745,25910.0,25909.0,3.06491633]
[1693789497594,0.05673745,25910.0,25909.0,3.06431633]
[1693789497791,0.05673745,25910.0,25909.0,3.06299633]
[1693789497992,0.05673745,25910.0,25909.0,3.06539633]
[1693789498191,0.05673745,25910.0,25909.0,3.06503633]
[1693789498511,0.05673745,25910.0,25909.0,3.06539633]
[1693789498750,0.05673745,25910.0,25909.0,3.06479633]
[1693789498925,0.05673745,25910.0,25909.0,3.06563633]
[1693789499100,0.05673745,25910.0,25909.0,3.06635633]
[1693789499304,0.05673745,25910.0,25909.0,3.06851633]
[1693789499463,0.05673745,25910.0,25909.0,3.06251633]
[1693789499659,0.05673745,25910.0,25909.0,3.46432465]
[1693789499862,0.05673745,25910.0,25909.0,3.46456465]
[1693789500063,0.05673745,25910.0,25909.0,3.46312465]
[1693789500369,0.05673745,25910.0,25909.0,3.44920465]
[1693789500573,0.05673745,25910.0,25909.0,3.44944465]
[1693789500798,0.05673745,25910.0,25909.0,3.44956465]
[1693789500994,0.05673745,25910.0,25909.0,3.44848465]
[1693789501199,0.05673745,25910.0,25909.0,3.44860465]
[1693789501415,0.05673745,25910.0,25909.0,3.44980465]
[1693789501615,0.05673745,25910.0,25909.0,3.44968465]
[1693789501813,0.05673745,25910.0,25909.0,3.46120465]
[1693789502225,0.05673745,25910.0,25909.0,3.46168465]
[1693789502433,0.05673745,25910.0,25909.0,3.51966021]
[1693789502632,0.05673745,25910.0,25909.0,3.24139279]
[1693789502839,0.05673745,25910.0,25909.0,3.51631879]
[1693789503039,0.05673745,25910.0,25909.0,3.51151879]
[1693789503263,0.05673745,25910.0,25909.0,3.50635892]
[1693789503475,0.05673745,25910.0,25909.0,3.22903279]
[1693789503687,0.05673745,25910.0,25909.0,3.22699279]
[1693789503886,0.05673745,25910.0,25909.0,3.22435279]
[1693789504136,0.05673745,25910.0,25909.0,3.22231279]
[1693789504313,0.05673745,25910.0,25909.0,3.22939279]
[1693789504516,0.05673745,25910.0,25909.0,3.22951279]
[1693789504719,0.05673745,25910.0,25909.0,3.22963279]
[1693789504943,0.05673745,25910.0,25909.0,3.23620717]
[1693789505160,0.05673745,25910.0,25909.0,3.23656717]
[1693789505356,0.05673745,25910.0,25909.0,3.23668717]
[1693789505510,0.05673745,25910.0,25909.0,3.24004717]
[1693789505735,0.05673745,25910.0,25909.0,3.23944717]
[1693789505926,0.05673745,25910.0,25909.0,3.1975484]
[1693789506121,0.05673745,25910.0,25909.0,3.2003084]
[1693789506340,0.05673745,25910.0,25909.0,3.2006684]
[1693789506517,0.05673745,25910.0,25909.0,3.2003084]
[1693789506713,0.05673745,25910.0,25909.0,3.2000684]
[1693789506916,0.05673745,25910.0,25909.0,3.1970684]
[1693789507113,0.04673745,25910.0,25909.0,3.2006684]
[1693789507325,0.04673745,25910.0,25909.0,3.2011484]
[1693789507830,0.04673745,25910.0,25909.0,3.1985084]
[1693789508029,0.04673745,25910.0,25909.0,3.2017484]
[1693789508215,0.04673745,25910.0,25909.0,3.2016284]
[1693789508426,0.04673745,25910.0,25909.0,3.2013884]
[1693789508631,0.04673745,25910.0,25909.0,3.2017484]
[1693789508845,0.04673745,25910.0,25909.0,3.2016284]
[1693789509722,0.04673745,25910.0,25909.0,3.2013884]
[1693789509924,0.04673745,25910.0,25909.0,3.2217884]
[1693789510127,0.04673745,25910.0,25909.0,3.2228684]
[1693789510340,0.04673745,25910.0,25909.0,3.2231084]
[1693789510533,0.04673745,25910.0,25909.0,3.2229884]
[1693789510778,0.04673745,25910.0,25909.0,3.2227484]
[1693789510932,0.04673745,25910.0,25909.0,3.2223884]
[1693789511312,0.04673745,25910.0,25909.0,3.2191484]
[1693789511488,0.04673745,25910.0,25909.0,3.2217884]
[1693789511712,0.04673745,25910.0,25909.0,3.2199884]
[1693789511914,0.04673745,25910.0,25909.0,3.2201084]
[1693789512180,0.04673745,25910.0,25909.0,3.2166284]
[1693789512379,0.04673745,25910.0,25909.0,3.2162684]
[1693789512524,0.04673745,25910.0,25909.0,3.2161484]
[1693789512724,0.04673745,25910.0,25909.0,3.2184284]
[1693789513148,0.04673745,25910.0,25909.0,3.2183084]
[1693789513352,0.04673745,25910.0,25909.0,3.2181884]
[1693789513550,0.04673745,25910.0,25909.0,3.2187884]
[1693789513791,0.04673745,25910.0,25909.0,3.2257484]
[1693789514094,0.04673745,25910.0,25909.0,3.2375084]
[1693789514299,0.04673745,25910.0,25909.0,3.2378684]
[1693789514551,0.04673745,25910.0,25909.0,3.2375084]
[1693789514730,0.04673745,25910.0,25909.0,3.2371484]
[1693789515137,0.04673745,25910.0,25909.0,3.2373884]
[1693789515344,0.04673745,25910.0,25909.0,3.2371484]
[1693789515546,0.04673745,25910.0,25909.0,3.2370284]
[1693789515701,0.04673745,25910.0,25909.0,3.2361884]
[1693789515915,0.04673745,25910.0,25909.0,3.2382284]
[1693789516112,0.04673745,25910.0,25909.0,3.2395484]
[1693789516479,0.04673745,25910.0,25909.0,3.2378684]
[1693789516614,0.04673745,25910.0,25909.0,3.2364284]
[1693789516827,0.04673745,25910.0,25909.0,3.2372684]
[1693789517030,0.04673745,25910.0,25909.0,3.2367884]
[1693789517349,0.04673745,25910.0,25909.0,3.2366684]
[1693789517559,0.04673745,25910.0,25909.0,3.2359484]
[1693789517755,0.04673745,25910.0,25909.0,3.2353484]
[1693789517916,0.04673745,25910.0,25909.0,3.2365484]
[1693789518120,0.04673745,25910.0,25909.0,3.2361884]
[1693789518326,0.04673745,25910.0,25909.0,3.2365484]
[1693789518530,0.04673745,25910.0,25909.0,3.2361884]
[1693789518731,0.04673745,25910.0,25909.0,3.2358284]
[1693789518934,0.04673745,25910.0,25909.0,3.2365484]
[1693789519134,0.04673745,25910.0,25909.0,3.2358284]
[1693789519832,1e-08,25910.0,25909.0,3.72601959]
[1693789520038,1e-08,25910.0,25909.0,4.51245959]
[1693789520296,1e-08,25910.0,25909.0,4.50309959]
[1693789520620,1e-08,25910.0,25909.0,4.12309749]
[1693789520952,1e-08,25910.0,25909.0,4.12453749]
[1693789521153,1e-08,25910.0,25909.0,4.12381749]
[1693789521353,1e-08,25910.0,25909.0,4.12849749]
[1693789521558,1e-08,25910.0,25909.0,4.12813749]
[1693789521781,1e-08,25910.0,25909.0,4.09113749]
[1693789521983,1e-08,25910.0,25909.0,4.09095749]
[1693789522187,1e-08,25910.0,25909.0,4.12597749]
[1693789522361,1e-08,25910.0,25909.0,4.08879749]
[1693789522559,1e-08,25910.0,25909.0,4.12399749]
[1693789522759,1e-08,25910.0,25909.0,4.12255749]
[1693789522990,1e-08,25910.0,25909.0,4.20707749]
[1693789523186,1e-08,25910.0,25909.0,4.20653749]
[1693789523545,1e-08,25910.0,25909.0,4.20527749]
[1693789523751,1e-08,25910.0,25909.0,4.20545749]
[1693789523949,1e-08,25910.0,25909.0,4.19339749]
[1693789524151,1e-08,25910.0,25909.0,4.18637749]
[1693789524362,1e-08,25910.0,25909.0,4.5833277]
[1693789524570,1e-08,25910.0,25909.0,4.5822477]
[1693789524815,1e-08,25910.0,25909.0,4.5811677]
[1693789525144,1e-08,25910.0,25909.0,4.5763077]
[1693789525271,1e-08,25910.0,25909.0,4.5761277]
[1693789525472,1e-08,25910.0,25909.0,4.5757677]
[1693789525679,1e-08,25910.0,25909.0,4.5761277]
[1693789525924,1e-08,25910.0,25909.0,4.5763077]
[1693789526118,1e-08,25910.0,25909.0,4.5772077]
[1693789526319,1e-08,25910.0,25909.0,4.5766677]
[1693789526568,1e-08,25910.0,25909.0,4.5748677]
[1693789526986,1e-08,25910.0,25909.0,4.5768477]
[1693789527210,1e-08,25910.0,25909.0,4.5781077]
[1693789527413,1e-08,25910.0,25909.0,4.5691077]
[1693789527614,1e-08,25910.0,25909.0,4.5737877]
[1693789527793,1e-08,25910.0,25909.0,4.5687477]
[1693789528001,1e-08,25910.0,25909.0,4.5689277]
[1693789528337,1e-08,25910.0,25909.0,4.5691077]
[1693789528546,1e-08,25910.0,25909.0,4.5696477]
[1693789528750,1e-08,25910.0,25909.0,4.5678477]
[1693789529053,1e-08,25910.0,25909.0,4.5674877]
[1693789529258,1e-08,25910.0,25909.0,4.5716277]
[1693789529434,1e-08,25910.0,25909.0,4.5759477]
[1693789529648,1e-08,25910.0,25909.0,4.5755877]
[1693789529841,1e-08,25910.0,25909.0,4.5777477]
[1693789530251,1e-08,25910.0,25909.0,4.5775677]
[1693789530455,1e-08,25910.0,25909.0,4.5779277]
[1693789530651,1e-08,25910.0,25909.0,4.3555077]
[1693789530827,1e-08,25910.0,25909.0,4.3509477]
[1693789531057,1e-08,25910.0,25909.0,4.3505877]
[1693789531369,1e-08,25910.0,25909.0,4.3508277]
[1693789531575,1e-08,25910.0,25909.0,4.3523877]
[1693789531782,1e-08,25910.0,25909.0,4.3527477]
[1693789531959,1e-08,25910.0,25909.0,4.3528677]
[1693789532127,1e-08,25910.0,25909.0,4.3520277]
[1693789532332,1e-08,25910.0,25909.0,4.3527477]
[1693789532533,1e-08,25910.0,25909.0,4.3539477]
[1693789532799,1e-08,25910.0,25909.0,4.3541877]
[1693789533142,1e-08,25910.0,25909.0,4.3527477]
[1693789533337,1e-08,25910.0,25909.0,4.3528677]
[1693789533598,1e-08,25910.0,25909.0,4.3532277]
[1693789533799,1e-08,25910.0,25909.0,4.3529877]
[1693789534003,1e-08,25910.0,25909.0,4.3531077]
[1693789534240,1e-08,25910.0,25909.0,4.3534677]
[1693789534464,1e-08,25910.0,25909.0,4.3533477]
[1693789534706,1e-08,25910.0,25909.0,4.3534677]
[1693789534859,1e-08,25910.0,25909.0,4.3537077]
[1693789535060,1e-08,25910.0,25909.0,4.3538277]
[1693789535482,1e-08,25910.0,25909.0,4.3539477]
[1693789535690,1e-08,25910.0,25909.0,4.3544277]
[1693789535892,1e-08,25910.0,25909.0,4.3545477]
[1693789536087,1e-08,25910.0,25909.0,4.3546677]
[1693789536291,1e-08,25910.0,25909.0,4.3547877]
[1693789536488,1e-08,25910.0,25909.0,4.3549077]
[1693789536691,1e-08,25910.0,25909.0,4.67020885]
[1693789536900,1e-08,25910.0,25909.0,4.67200885]
[1693789537080,1e-08,25910.0,25909.0,4.67284885]
[1693789537426,1e-08,25910.0,25909.0,4.67296885]
[1693789537627,1e-08,25910.0,25909.0,4.67284885]
[1693789537841,1e-08,25910.0,25909.0,4.67320885]
[1693789538038,1e-08,25910.0,25909.0,4.67272885]
[1693789538231,1e-08,25910.0,25909.0,4.67284885]
[1693789538408,1e-08,25910.0,25909.0,4.67272885]
[1693789538819,1e-08,25910.0,25909.0,4.67872885]
[1693789539032,1e-08,25910.0,25909.0,4.67968885]
[1693789539585,1e-08,25910.0,25909.0,4.67980885]
[1693789539826,1e-08,25910.0,25909.0,4.67992885]
[1693789540026,1e-08,25910.0,25909.0,4.67980885]
[1693789540225,1e-08,25910.0,25909.0,4.67992885]
[1693789540443,1e-08,25910.0,25909.0,4.68004885]
[1693789540639,1e-08,25910.0,25909.0,4.68016885]
[1693789540790,1e-08,25910.0,25909.0,4.87510885]
[1693789541023,1e-08,25910.0,25909.0,4.87546885]
[1693789541479,1e-08,25910.0,25909.0,4.67788885]
[1693789541685,1e-08,25910.0,25909.0,4.67716885]
[1693789541928,1e-08,25910.0,25909.0,4.67644885]
[1693789542262,1e-08,25910.0,25909.0,4.67656885]
[1693789542627,1e-08,25910.0,25909.0,4.67332885]
[1693789542828,1e-08,25910.0,25909.0,4.67344885]
[1693789543249,1e-08,25910.0,25909.0,4.67416885]
[1693789543631,1e-08,25910.0,25909.0,4.67464885]
[1693789543835,1e-08,25910.0,25909.0,4.67440885]
[1693789544245,1e-08,25910.0,25909.0,4.67356885]
[1693789544441,1e-08,25910.0,25909.0,4.67344885]
[1693789544647,1e-08,25910.0,25909.0,4.67104885]
[1693789544779,1e-08,25910.0,25909.0,4.66876885]
[1693789544987,1e-08,25910.0,25909.0,4.67104885]
[1693789545189,1e-08,25910.0,25909.0,4.67020885]
[1693789545404,1e-08,25910.0,25909.0,4.66996885]
[1693789545609,1e-08,25910.0,25909.0,4.67908885]
[1693789545810,1e-08,25910.0,25909.0,4.68004885]
[1693789546104,1e-08,25910.0,25909.0,4.67992885]
[1693789546542,1e-08,25910.0,25909.0,4.67596885]
[1693789546659,1e-08,25910.0,25909.0,4.67272885]
[1693789547037,1e-08,25910.0,25909.0,4.67176885]
[1693789547297,1e-08,25910.0,25909.0,4.67164885]
[1693789547462,1e-08,25910.0,25909.0,4.67188885]
[1693789547607,1e-08,25910.0,25909.0,4.67212885]
[1693789547807,1e-08,25910.0,25909.0,4.67224885]
[1693789548212,1e-08,25910.0,25909.0,4.67344885]
[1693789548412,1e-08,25910.0,25909.0,4.67620885]
[1693789548633,1e-08,25910.0,25909.0,4.67632885]
[1693789548853,1e-08,25910.0,25909.0,4.67968885]
[1693789549101,1e-08,25910.0,25909.0,4.67740885]
[1693789549309,1e-08,25910.0,25909.0,4.67668885]
[1693789549521,1e-08,25910.0,25909.0,4.67740885]
[1693789549746,1e-08,25910.0,25909.0,4.67752885]
[1693789549948,0.37159981,25915.0,25912.0,0.02]
[1693789550155,0.37159981,25915.0,25914.0,0.31421548]
[1693789550332,0.3706,25915.0,25914.0,2.50080633]
[1693789550535,0.1505,25915.0,25914.0,2.50080633]
[1693789550695,0.1505,25915.0,25914.0,2.61078633]
[1693789550900,0.1505,25915.0,25914.0,2.61072633]
[1693789551362,0.1505,25915.0,25914.0,2.64772633]
[1693789551563,0.1505,25915.0,25914.0,2.64760633]
[1693789551677,0.1505,25915.0,25914.0,2.80199233]
[1693789552017,0.1505,25915.0,25914.0,2.80193233]
[1693789552222,0.1505,25915.0,25914.0,2.80199233]
[1693789552646,0.1505,25915.0,25914.0,2.80205233]
[1693789552805,0.1505,25915.0,25914.0,2.80199233]
[1693789553111,0.1505,25915.0,25914.0,2.80205233]
[1693789553533,0.1505,25915.0,25914.0,2.80253233]
[1693789553781,0.1505,25915.0,25914.0,2.80241233]
[1693789553981,0.1505,25915.0,25914.0,2.80247233]
[1693789554189,0.1505,25915.0,25914.0,2.57037685]
[1693789554373,0.1505,25915.0,25914.0,2.57073685]
[1693789554579,0.1505,25915.0,25914.0,2.57121685]
[1693789554976,0.1505,25915.0,25914.0,2.57127685]
[1693789555183,0.1505,25915.0,25914.0,2.57133685]
[1693789555490,0.1505,25915.0,25914.0,2.57121685]
[1693789555694,0.1505,25915.0,25914.0,2.57127685]
[1693789555868,0.1505,25915.0,25914.0,2.57139685]
[1693789556246,0.1505,25915.0,25914.0,2.57151685]
[1693789556448,0.1505,25915.0,25914.0,2.57157685]
[1693789556615,0.1505,25915.0,25914.0,2.57169685]
[1693789556819,0.1505,25915.0,25914.0,2.57175685]
[1693789557169,0.1505,25915.0,25914.0,2.57241685]
[1693789557551,0.1505,25915.0,25914.0,2.57253685]
[1693789557753,0.1505,25915.0,25914.0,2.57259685]
[1693789557972,0.1505,25915.0,25914.0,2.57523685]
[1693789558168,0.16961891,25915.0,25914.0,2.57517685]
[1693789558343,0.16961891,25915.0,25914.0,2.57493685]
[1693789558542,0.16961891,25915.0,25914.0,2.57541685]
[1693789558791,0.16961891,25915.0,25914.0,2.57517685]
[1693789558967,0.16961891,25915.0,25914.0,2.57523685]
[1693789559172,0.16961891,25915.0,25914.0,2.57547685]
[1693789559368,0.16961891,25915.0,25914.0,2.57541685]
[1693789559597,0.16961891,25915.0,25914.0,3.27547685]
[1693789559791,0.16961891,25915.0,25914.0,3.27553685]
[1693789560133,0.16961891,25915.0,25914.0,3.25969685]
[1693789560333,0.16961891,25915.0,25914.0,3.25891685]
[1693789560535,0.16961891,25915.0,25914.0,3.25957685]
[1693789560741,0.16961891,25915.0,25914.0,3.26029685]
[1693789560939,0.16961891,25915.0,25914.0,3.26263685]
[1693789561309,0.16961891,25915.0,25914.0,2.56701685]
[1693789561513,0.16961891,25915.0,25914.0,2.56785685]
[1693789561713,0.16961891,25915.0,25914.0,2.56809685]
[1693789561894,0.16961891,25915.0,25914.0,2.56611685]
[1693789562094,0.16961891,25915.0,25914.0,2.56545685]
[1693789562301,0.16961891,25915.0,25914.0,3.03489543]
[1693789562441,0.16961891,25915.0,25914.0,3.03537543]
[1693789562643,0.16961891,25915.0,25914.0,3.03525543]
[1693789562845,0.16961891,25915.0,25914.0,3.03591543]
[1693789563054,0.16961891,25915.0,25914.0,3.03603543]
[1693789563259,0.16961891,25915.0,25914.0,3.03609543]
[1693789563458,0.16961891,25915.0,25914.0,3.02553543]
[1693789563700,0.16961891,25915.0,25914.0,3.02475543]
[1693789563879,0.16961891,25915.0,25914.0,3.02487543]
[1693789564083,0.16961891,25915.0,25914.0,2.78127525]
[1693789564286,0.16961891,25915.0,25914.0,3.05861383]
[1693789564490,0.16961891,25915.0,25914.0,2.77953525]
[1693789564732,0.16961891,25915.0,25914.0,2.78151525]
[1693789564964,0.16961891,25915.0,25914.0,2.78241525]
[1693789565145,0.16961891,25915.0,25914.0,2.78487525]
[1693789565340,0.16961891,25915.0,25914.0,3.06239383]
[1693789565553,0.16961891,25915.0,25914.0,3.06233383]
[1693789565764,0.16961891,25915.0,25914.0,3.06245383]
[1693789565918,0.16961891,25915.0,25914.0,3.06281383]
[1693789566099,0.16961891,25915.0,25914.0,3.06299383]
[1693789566322,0.16961891,25915.0,25914.0,3.06293383]
[1693789566524,0.16961891,25915.0,25914.0,3.25143383]
[1693789566866,0.16961891,25915.0,25914.0,3.25179383]
[1693789567075,0.16961891,25915.0,25914.0,3.25233383]
[1693789567255,0.16961891,25915.0,25914.0,3.25425383]
[1693789567462,0.16961891,25915.0,25914.0,3.25437383]
[1693789567652,0.16961891,25915.0,25914.0,3.25443383]
[1693789567857,0.16961891,25915.0,25914.0,3.25449383]
[1693789568080,0.16961891,25915.0,25914.0,3.25281383]
[1693789568322,0.16961891,25915.0,25914.0,3.25287383]
[1693789568535,0.16961891,25915.0,25914.0,3.25311383]
[1693789568743,0.16961891,25915.0,25914.0,3.25389383]
[1693789568916,0.16961891,25915.0,25914.0,3.25503383]
[1693789569119,0.16961891,25915.0,25914.0,3.25557383]
[1693789569354,0.16961891,25915.0,25914.0,3.25503383]
[1693789569544,0.16961891,25915.0,25914.0,3.25509383]
[1693789569757,0.16961891,25915.0,25914.0,3.25515383]
[1693789569966,0.16961891,25915.0,25914.0,3.25575383]
[1693789570175,0.16961891,25915.0,25914.0,3.25527383]
[1693789570373,0.16961891,25915.0,25914.0,3.25521383]
[1693789570593,0.16961891,25915.0,25914.0,3.25617383]
[1693789570823,0.16961891,25915.0,25914.0,3.25599383]
[1693789571037,0.16961891,25915.0,25914.0,3.25521383]
[1693789571402,0.16961891,25915.0,25914.0,3.25497383]
[1693789571533,0.16961891,25915.0,25914.0,3.25551383]
[1693789571758,0.16961891,25915.0,25914.0,3.25431383]
[1693789571982,0.16961891,25915.0,25914.0,3.25605383]
[1693789572244,0.16961891,25915.0,25914.0,3.25611383]
[1693789572439,0.16961891,25915.0,25914.0,3.25941383]
[1693789572718,0.16961891,25915.0,25914.0,3.25917383]
[1693789572876,0.16961891,25915.0,25914.0,3.25953383]
[1693789573298,0.16961891,25915.0,25914.0,3.25959383]
[1693789573541,0.16961891,25915.0,25914.0,3.25863383]
[1693789573739,0.16961891,25915.0,25914.0,3.25305383]
[1693789574074,0.16961891,25915.0,25914.0,3.25300012]
[1693789574275,0.16961891,25915.0,25914.0,3.25540012]
[1693789574481,0.16961891,25915.0,25914.0,3.25630012]
[1693789574880,0.16961891,25915.0,25914.0,3.25636012]
[1693789575135,0.16961891,25915.0,25914.0,3.25528012]
[1693789575332,0.16961891,25915.0,25914.0,3.25432012]
[1693789575535,0.16961891,25915.0,25914.0,3.25378012]
[1693789575775,0.16961891,25915.0,25914.0,3.25654012]
[1693789575964,0.16961891,25915.0,25914.0,3.25648012]
[1693789576183,0.16961891,25915.0,25914.0,3.25708012]
[1693789576361,0.16961891,25915.0,25914.0,3.25774012]
[1693789576579,0.16961891,25915.0,25914.0,3.25762012]
[1693789576789,0.16961891,25915.0,25914.0,3.25804012]
[1693789576941,0.16961891,25915.0,25914.0,3.25732012]
[1693789577345,0.16961891,25915.0,25914.0,3.25840012]
[1693789577553,0.16961891,25915.0,25914.0,3.25804012]
[1693789577763,0.16961891,25915.0,25914.0,3.25810012]